bitfinex-derivatives/quotes_ETHF0:USTF0_20241027
["timestamp","ask_amount","ask_price","bid_price","bid_amount"]
[1730005904700,2.53373925,2481.5,2481.4,0.40346]
[1730005906709,1.2282,2481.5,2481.4,0.40346]
[1730005907015,0.818,2481.5,2481.4,1.70899925]
[1730005907718,1.74813925,2481.6,2481.5,0.40344]
[1730005907917,1.74813925,2481.6,2481.5,3.61124]
[1730005907918,2.56613925,2481.6,2481.5,3.61124]
[1730005909311,2.56613925,2481.6,2481.5,0.40344]
[1730005910108,2.56613925,2481.6,2481.5,3.61124]
[1730005910613,2.56613925,2481.6,2481.5,0.40344]
[1730005910813,2.56613925,2481.6,2481.5,3.61124]
[1730005913417,2.56613925,2481.6,2481.5,0.40344]
[1730005913716,2.56613925,2481.6,2481.5,3.61124]
[1730005914414,2.56613925,2481.6,2481.5,0.40344]
[1730005914643,2.56613925,2481.6,2481.5,3.61124]
[1730005915716,2.56613925,2481.6,2481.5,0.40344]
[1730005916119,2.56613925,2481.6,2481.5,3.61124]
[1730005917916,1.2606,2481.6,2481.5,4.91677925]
[1730005918115,2.56613925,2481.6,2481.5,4.91677925]
[1730005919321,2.56613925,2481.6,2481.5,1.70897925]
[1730005919526,2.56613925,2481.6,2481.5,4.91677925]
[1730005920115,2.56613925,2481.6,2481.5,1.70897925]
[1730005920416,2.56613925,2481.6,2481.5,4.91677925]
[1730005921718,2.56613925,2481.6,2481.5,1.70897925]
[1730005921918,2.56613925,2481.6,2481.5,4.91677925]
[1730005923612,2.56613925,2481.6,2481.5,1.70897925]
[1730005923820,2.56613925,2481.6,2481.5,4.91677925]
[1730005925715,16.4068,2482.3,2481.5,8.54293925]
[1730005925915,16.4068,2482.3,2481.8,4.51333925]
[1730005925916,1.30553925,2481.9,2481.8,4.51333925]
[1730005926122,1.30553925,2481.9,2481.8,4.91672925]
[1730005927022,16.42214828,2482.1,2482.0,0.40336]
[1730005927212,18.54568753,2482.1,2482.0,0.40336]
[1730005928314,17.24014828,2482.1,2482.0,5.73769925]
[1730005928720,18.54568753,2482.1,2482.0,5.73769925]
[1730005930426,18.54568753,2482.1,2482.0,4.43216]
[1730005932623,16.42214828,2482.1,2482.0,5.73769925]
[1730005934625,13.70523848,2482.1,2482.0,5.73769925]
[1730005935723,2.54243925,2482.4,2482.3,0.40331]
[1730005935926,2.54243925,2482.4,2482.3,4.91664925]
[1730005937323,0.4199,2482.4,2482.3,4.91664925]
[1730005937533,1.6602,2482.5,2482.4,0.40329]
[1730005937833,1.6602,2482.5,2482.4,1.70882925]
[1730005941322,0.8432,2482.5,2482.4,1.70882925]
[1730005943629,0.4379,2482.9,2482.4,5.33353925]
[1730005943832,1.2248,2482.8,2482.7,4.91658925]
[1730005945534,1.6604,2482.8,2482.7,4.91658925]
[1730005946118,1.6604,2482.8,2482.7,1.70878925]
[1730005946339,1.6604,2482.8,2482.7,4.91658925]
[1730005947428,1.6604,2482.8,2482.7,1.70878925]
[1730005947832,1.6604,2482.8,2482.7,4.91658925]
[1730005950233,1.6604,2482.8,2482.7,1.70878925]
[1730005950425,1.6604,2482.8,2482.7,4.91658925]
[1730005951135,1.6604,2482.8,2482.7,1.70878925]
[1730005951335,1.6604,2482.8,2482.7,4.91658925]
[1730005954438,1.6604,2482.8,2482.7,1.70878925]
[1730005954835,1.6604,2482.8,2482.7,4.91658925]
[1730005955236,1.6604,2482.8,2482.7,1.70878925]
[1730005956038,1.6604,2482.8,2482.7,4.91658925]
[1730005956440,1.6604,2482.8,2482.7,1.70878925]
[1730005956939,1.6604,2482.8,2482.7,4.91658925]
[1730005958343,0.4379,2482.9,2482.7,4.91658925]
[1730005958344,0.817,2483.2,2482.7,4.51333925]
[1730005958546,0.4374,2483.0,2482.9,0.40321]
[1730005958837,0.4374,2483.0,2482.9,1.70874925]
[1730005959541,0.863,2483.0,2482.9,1.70874925]
[1730005961046,0.863,2483.0,2482.9,4.91654925]
[1730005962546,0.4422,2483.3,2482.9,8.54053925]
[1730005962848,0.4422,2483.3,2483.2,1.30553925]
[1730005962849,3.43083925,2483.3,2483.2,1.30553925]
[1730005963143,3.43083925,2483.3,2482.9,3.2078]
[1730005963144,3.43083925,2483.3,2483.1,1.70870925]
[1730005963356,3.83398925,2483.3,2483.1,1.70870925]
[1730005963642,1.70870925,2483.2,2483.0,0.40319]
[1730005963848,1.30553925,2483.1,2483.0,0.40319]
[1730005964146,1.30553925,2483.1,2482.9,4.51333925]
[1730005964341,1.30553925,2483.1,2482.9,3.61101]
[1730005964342,0.4085,2483.0,2482.9,3.61101]
[1730005965142,0.4085,2483.0,2482.9,4.91654925]
[1730005967741,0.4085,2483.0,2482.9,4.51333925]
[1730005967951,1.71403925,2483.0,2482.9,3.61101]
[1730005968741,2.11723925,2483.0,2482.9,3.2078]
[1730005970046,2.11723925,2483.0,2482.8,1.70875925]
[1730005970244,0.856,2482.9,2482.8,1.70875925]
[1730005970445,0.856,2482.9,2482.8,4.91655925]
[1730005970650,0.856,2482.9,2482.8,3.61102]
[1730005973445,0.856,2482.9,2482.8,3.2078]
[1730005973653,1.25921,2482.9,2482.8,3.2078]
[1730005974453,1.25921,2482.9,2482.7,1.70877925]
[1730005974854,0.856,2482.9,2482.7,1.70877925]
[1730005975047,0.856,2482.9,2482.8,3.2078]
[1730005975255,0.856,2482.9,2482.8,3.61103]
[1730005976162,0.856,2482.9,2482.8,0.40323]
[1730005976352,0.856,2482.9,2482.7,1.30553925]
[1730005976353,2.56474925,2482.9,2482.5,1.0591542]
[1730005976560,2.56474925,2482.9,2482.7,0.40324]
[1730005976561,2.12153925,2482.8,2482.7,0.40324]
[1730005976961,0.816,2482.8,2482.7,0.40324]
[1730005979570,0.816,2482.8,2482.7,3.61104]
[1730005979859,0.816,2482.8,2482.7,0.40324]
[1730005980065,0.816,2482.8,2482.7,3.61104]
[1730005980361,0.816,2482.8,2482.7,4.91657925]
[1730005981366,0.816,2482.8,2482.7,1.70877925]
[1730005981559,0.816,2482.8,2482.7,4.91657925]
[1730005984661,0.816,2482.8,2482.7,3.61104]
[1730005985366,0.816,2482.8,2482.7,4.6701942]
[1730005985762,0.816,2482.8,2482.7,3.61104]
[1730005986362,0.816,2482.8,2482.7,4.6701942]
[1730005987264,0.816,2482.8,2482.7,3.61104]
[1730005987970,0.816,2482.8,2482.7,0.40324]
[1730005988466,0.816,2482.8,2482.7,3.61104]
[1730005994469,0.816,2482.8,2482.7,6.2452785]
[1730005996076,0.816,2482.8,2482.7,6.24527136]
[1730005996871,0.816,2482.8,2482.7,3.03747136]
[1730005997286,0.816,2482.8,2482.7,6.24527136]
[1730005997370,0.816,2482.8,2482.7,6.24527641]
[1730005999270,0.816,2482.8,2482.7,3.03747641]
[1730006000173,0.816,2482.8,2482.7,6.24527641]
[1730006000788,0.816,2482.8,2482.7,6.24522549]
[1730006002074,0.816,2482.8,2482.7,3.03742549]
[1730006002270,0.816,2482.8,2482.7,6.24522549]
[1730006002471,0.816,2482.8,2482.7,4.6701942]
[1730006003079,0.816,2482.8,2482.7,1.4623942]
[1730006003375,0.816,2482.8,2482.7,4.6701942]
[1730006004283,0.816,2482.8,2482.7,1.4623942]
[1730006004578,0.816,2482.8,2482.7,4.6701942]
[1730006005079,0.816,2482.8,2482.7,1.4623942]
[1730006005671,0.816,2482.8,2482.7,4.6701942]
[1730006006175,0.816,2482.8,2482.7,1.4623942]
[1730006006378,0.816,2482.8,2482.7,4.6701942]
[1730006007071,0.816,2482.8,2482.7,1.4623942]
[1730006007290,0.816,2482.8,2482.7,4.6701942]
[1730006007573,1.21923,2482.8,2482.7,4.2669542]
[1730006007873,2.52476925,2482.8,2482.7,4.2669542]
[1730006008278,2.12153925,2482.8,2482.7,4.2669542]
[1730006008582,2.52476925,2482.8,2482.7,4.2669542]
[1730006009181,2.12153925,2482.8,2482.7,4.2669542]
[1730006009579,2.12153925,2482.8,2482.7,3.61105]
[1730006010173,0.816,2482.8,2482.7,3.61105]
[1730006010677,0.816,2482.8,2482.7,4.01885]
[1730006011478,0.816,2482.8,2482.7,0.81105]
[1730006011776,0.4365,2482.9,2482.8,0.40323]
[1730006011978,1.2525,2482.9,2482.8,0.40323]
[1730006013585,1.2525,2482.9,2482.8,3.61103]
[1730006014681,1.2525,2482.9,2482.8,0.40323]
[1730006014881,1.2525,2482.9,2482.8,3.61103]
[1730006017671,1.2525,2482.9,2482.8,4.6701842]
[1730006018086,1.2525,2482.9,2482.8,1.4623842]
[1730006018585,1.2525,2482.9,2482.8,4.6701842]
[1730006018977,1.2525,2482.9,2482.8,1.4623842]
[1730006019183,1.2525,2482.9,2482.8,4.6701842]
[1730006019773,1.2525,2482.9,2482.8,1.4623842]
[1730006020290,1.2525,2482.9,2482.8,4.6701842]
[1730006021475,1.2525,2482.9,2482.8,6.24627384]
[1730006022284,1.2525,2482.9,2482.8,3.03847384]
[1730006022478,1.2525,2482.9,2482.8,6.24627384]
[1730006022687,1.2525,2482.9,2482.8,6.49265889]
[1730006023087,1.2525,2482.9,2482.8,8.08261275]
[1730006023286,1.2525,2482.9,2482.8,6.49265889]
[1730006023685,1.2525,2482.9,2482.8,7.55166582]
[1730006024082,1.2525,2482.9,2482.8,5.97557618]
[1730006024288,1.2525,2482.9,2482.8,7.55188427]
[1730006024487,1.2525,2482.9,2482.8,6.49287734]
[1730006024686,1.2525,2482.9,2482.8,4.91656925]
[1730006026092,1.2525,2482.9,2482.8,1.70876925]
[1730006027491,1.2525,2482.9,2482.8,4.91656925]
[1730006028793,1.2525,2482.9,2482.8,1.70876925]
[1730006029189,1.2525,2482.9,2482.8,4.91656925]
[1730006030091,1.2525,2482.9,2482.8,1.70876925]
[1730006030483,1.2525,2482.9,2482.8,4.91656925]
[1730006031291,2.55803925,2482.9,2482.8,4.91656925]
[1730006031899,2.55803925,2482.9,2482.8,1.70876925]
[1730006032399,2.55803925,2482.9,2482.8,4.91656925]
[1730006032589,2.55803925,2482.9,2482.8,7.55174471]
[1730006033488,2.55803925,2482.9,2482.8,5.92013575]
[1730006033803,2.55803925,2482.9,2482.8,7.55174602]
[1730006035495,2.55803925,2482.9,2482.8,4.34394602]
[1730006035698,2.55803925,2482.9,2482.8,7.55174602]
[1730006036092,2.55803925,2482.9,2482.8,4.34394602]
[1730006036492,2.55803925,2482.9,2482.8,7.55174602]
[1730006037691,2.55803925,2482.9,2482.8,6.24620677]
[1730006038003,2.96124925,2482.9,2482.8,4.26678573]
[1730006038396,2.55803925,2482.9,2482.7,1.05898573]
[1730006038734,2.13406925,2482.8,2482.7,1.05898573]
[1730006039599,2.13406925,2482.8,2482.6,0.40326]
[1730006039900,1.73813925,2482.7,2482.6,0.40326]
[1730006041491,1.73813925,2482.7,2482.6,3.2078]
[1730006041693,1.73813925,2482.7,2482.6,3.61106]
[1730006046306,1.73813925,2482.7,2482.6,3.2078]
[1730006047606,1.73813925,2482.7,2482.6,3.61106]
[1730006047904,1.73813925,2482.7,2482.6,4.67004573]
[1730006048102,1.73813925,2482.7,2482.6,6.24556841]
[1730006048402,1.73813925,2482.7,2482.6,4.67004573]
[1730006050408,1.73813925,2482.7,2482.6,1.46224573]
[1730006050610,1.73813925,2482.7,2482.6,4.67004573]
[1730006051006,1.73813925,2482.7,2482.6,1.46224573]
[1730006051304,1.73813925,2482.7,2482.6,4.67004573]
[1730006053301,1.73813925,2482.7,2482.6,4.26678573]
[1730006053705,1.73813925,2482.7,2482.6,4.67004573]
[1730006053901,0.4326,2482.7,2482.6,2.76778498]
[1730006054107,1.73813925,2482.7,2482.6,5.97558498]
[1730006054309,1.73813925,2482.7,2482.6,5.57232498]
[1730006054505,1.73813925,2482.7,2482.6,4.26678573]
[1730006054703,1.73813925,2482.7,2482.6,4.67004573]
[1730006054905,1.73813925,2482.7,2482.6,3.61106]
[1730006055305,1.73813925,2482.7,2482.6,0.40326]
[1730006055705,1.73813925,2482.7,2482.6,3.61106]
[1730006056810,1.73813925,2482.7,2482.6,0.40326]
[1730006057010,1.73813925,2482.7,2482.6,3.61106]
[1730006057605,1.73813925,2482.7,2482.6,0.40326]
[1730006057809,0.4326,2482.7,2482.6,3.61106]
[1730006058406,0.4326,2482.7,2482.6,0.40326]
[1730006058711,0.816,2483.3,2482.7,0.40325]
[1730006059011,0.40311,2483.6,2483.3,0.40315]
[1730006059012,2.14053925,2483.4,2483.3,0.40315]
[1730006059209,2.95653925,2483.4,2483.3,0.40315]
[1730006060100,2.14053925,2483.4,2483.3,0.40315]
[1730006060302,2.95653925,2483.4,2483.3,0.40315]
[1730006065515,3.35967925,2483.4,2483.2,4.47896]
[1730006065814,1.30553925,2483.3,2483.2,4.47896]
[1730006066725,1.30553925,2483.3,2483.2,1.27116]
[1730006067315,1.30553925,2483.3,2483.2,4.47896]
[1730006068312,1.30553925,2483.3,2483.2,3.61096]
[1730006068511,1.72613925,2483.3,2483.2,3.61096]
[1730006069020,1.72613925,2483.3,2483.2,3.2078]
[1730006069316,2.12928925,2483.3,2483.2,3.2078]
[1730006071821,0.40317,2483.2,2483.0,0.40319]
[1730006072016,1.30553925,2483.1,2483.0,0.40319]
[1730006072216,1.30553925,2483.1,2483.0,3.61099]
[1730006072920,1.30553925,2483.1,2483.0,0.40319]
[1730006073222,1.30553925,2483.1,2483.0,3.61099]
[1730006074115,1.30553925,2483.1,2483.0,0.40319]
[1730006074525,1.30553925,2483.1,2483.0,3.61099]
[1730006075924,1.30553925,2483.1,2483.0,3.2078]
[1730006076427,1.30553925,2483.1,2483.0,3.611]
[1730006076730,1.30553925,2483.1,2483.0,0.4032]
[1730006077328,1.30553925,2483.1,2483.0,3.611]
[1730006078222,1.30553925,2483.1,2483.0,0.4032]
[1730006078523,1.30553925,2483.1,2483.0,3.611]
[1730006079426,1.30553925,2483.1,2483.0,0.4032]
[1730006079827,1.72233925,2483.1,2483.0,3.611]
[1730006082021,1.30553925,2483.2,2483.0,3.611]
[1730006082221,1.72233925,2483.2,2483.0,4.018]
[1730006085927,1.72233925,2483.2,2483.1,0.40318]
[1730006086122,1.72233925,2483.2,2483.1,3.61098]
[1730006086423,1.72233925,2483.2,2483.1,3.2078]
[1730006086731,1.72233925,2483.2,2483.1,3.61098]
[1730006087827,0.4168,2483.2,2483.1,3.61098]
[1730006089730,1.72613925,2483.3,2483.1,3.2078]
[1730006089930,0.816,2483.2,2483.1,5.34851925]
[1730006090632,0.816,2483.2,2483.1,9.37571925]
[1730006090835,2.13193925,2483.4,2483.3,0.40315]
[1730006091042,2.94793925,2483.4,2483.3,0.40315]
[1730006097838,3.35106925,2483.4,2483.3,0.40315]
[1730006098031,1.6424,2483.4,2483.3,0.40315]
[1730006098429,2.94793925,2483.4,2483.3,0.40315]
[1730006099145,1.6424,2483.4,2483.3,1.70868925]
[1730006099335,1.6424,2483.4,2483.3,2.14818925]
[1730006099533,0.4262,2483.6,2483.3,6.17538925]
[1730006099741,0.816,2483.5,2483.4,1.70866925]
[1730006100034,0.816,2483.5,2483.4,0.40313]
[1730006100240,0.816,2483.5,2483.4,4.42953]
[1730006100941,0.816,2483.5,2483.4,0.40313]
[1730006103237,0.816,2483.5,2483.3,0.4395]
[1730006103238,2.12153925,2483.5,2483.3,0.4395]
[1730006103540,2.52465925,2483.5,2483.3,0.40314]
[1730006103938,2.12153925,2483.5,2483.3,0.40314]
[1730006104144,2.52466925,2483.5,2483.2,4.91649925]
[1730006104342,2.12153925,2483.5,2483.3,0.40314]
[1730006104538,2.52465925,2483.5,2483.3,0.40314]
[1730006105741,2.12153925,2483.5,2483.3,0.40314]
[1730006106247,2.52465925,2483.5,2483.3,0.40314]
[1730006106953,2.52465925,2483.5,2483.3,3.61094]
[1730006107946,2.52465925,2483.5,2483.3,3.61095]
[1730006108646,0.8352,2483.6,2483.4,1.30553925]
[1730006108852,3.35984925,2483.6,2483.4,1.30553925]
[1730006109049,3.35984925,2483.6,2483.4,1.70866925]
[1730006109246,3.35984925,2483.6,2483.4,1.30553925]
[1730006109644,0.816,2483.5,2483.3,15.57835818]
[1730006110342,1.21912,2483.5,2483.3,15.57835818]
[1730006110553,1.21912,2483.5,2483.3,12.37055818]
[1730006110743,1.21912,2483.5,2483.3,15.57835818]
[1730006112647,1.21912,2483.5,2483.3,12.37055818]
[1730006112851,0.816,2483.5,2483.3,15.17521818]
[1730006113157,0.816,2483.5,2483.4,0.40313]
[1730006113459,0.816,2483.5,2483.3,15.17521818]
[1730006113650,0.40312,2483.5,2483.3,15.57835818]
[1730006114153,3.35984925,2483.6,2483.3,15.57835818]
[1730006114867,0.816,2483.5,2483.3,15.57835818]
[1730006115359,0.816,2483.5,2483.3,12.37055818]
[1730006115661,0.816,2483.5,2483.3,15.57835818]
[1730006116058,1.21912,2483.5,2483.3,15.57835818]
[1730006116261,2.52465925,2483.5,2483.3,4.51333925]
[1730006116662,2.52465925,2483.5,2483.3,4.91647925]
[1730006119363,2.52465925,2483.5,2483.3,1.70867925]
[1730006119565,2.52465925,2483.5,2483.4,3.2078]
[1730006121055,2.52465925,2483.5,2483.3,1.70867925]
[1730006121268,2.52465925,2483.5,2483.4,3.2078]
[1730006121972,2.52465925,2483.5,2483.3,1.70867925]
[1730006122154,0.4497,2483.4,2483.3,1.70867925]
[1730006122766,0.4497,2483.4,2483.3,4.51333925]
[1730006123360,0.4497,2483.4,2483.3,4.91648925]
[1730006123765,0.4497,2483.4,2483.3,4.51333925]
[1730006123965,0.85283,2483.4,2483.3,4.51333925]
[1730006124656,0.85283,2483.4,2483.3,1.30553925]
[1730006124862,0.4497,2483.4,2483.3,1.30553925]
[1730006125062,0.4497,2483.4,2483.3,4.51333925]
[1730006125564,2.15836925,2483.4,2483.3,3.2078]
[1730006128362,1.75523925,2483.4,2483.3,3.2078]
[1730006128671,2.15836925,2483.4,2483.3,3.2078]
[1730006128865,5.78243925,2483.4,2483.3,3.2078]
[1730006129066,6.18556925,2483.4,2483.3,3.2078]
[1730006129261,5.78243925,2483.4,2483.0,3.2078]
[1730006129471,1.30553925,2483.1,2483.0,3.2078]
[1730006129766,1.70871925,2483.1,2483.0,3.2078]
[1730006132676,1.70871925,2483.1,2482.8,1.30553925]
[1730006132677,1.30553925,2483.1,2482.8,1.30553925]
[1730006132874,0.40321,2482.9,2482.8,1.30553925]
[1730006135178,0.40323,2482.8,2482.7,3.6303]
[1730006135479,0.40323,2482.8,2482.7,4.51333925]
[1730006140870,0.40323,2482.8,2482.7,4.94663925]
[1730006143078,0.40323,2482.8,2482.7,1.73883925]
[1730006145183,0.40323,2482.8,2482.7,4.94663925]
[1730006145384,0.40323,2482.8,2482.7,1.73883925]
[1730006148883,1.70876925,2482.9,2482.7,1.73883925]
[1730006149386,1.70876925,2482.9,2482.7,2.14207925]
[1730006150391,3.83743925,2483.0,2482.8,0.40322]
[1730006151881,3.83743925,2483.0,2482.9,0.40321]
[1730006152282,3.2078,2483.4,2482.9,1.30553925]
[1730006152490,2.12153925,2483.3,2483.2,0.40316]
[1730006152782,3.41113925,2483.3,2483.2,0.40316]
[1730006152984,7.43833925,2483.3,2483.2,0.40316]
[1730006153293,7.84148925,2483.3,2483.1,1.70870925]
[1730006153517,3.81428925,2483.3,2483.1,1.70870925]
[1730006153789,3.81428925,2483.3,2483.1,1.30553925]
[1730006153790,0.816,2483.2,2483.1,1.30553925]
[1730006154082,0.816,2483.2,2483.0,2.12182925]
[1730006154083,2.52470925,2483.2,2483.0,2.12182925]
[1730006154483,1.30553925,2483.1,2483.0,0.81629]
[1730006156793,1.70871925,2483.1,2483.0,0.81629]
[1730006157089,1.70871925,2483.1,2483.0,0.4131]
[1730006159492,0.40321,2482.9,2482.8,4.92583925]
[1730006159698,0.40321,2482.9,2482.8,5.34323925]
[1730006159880,1.70874925,2482.9,2482.8,3.6252]
[1730006160085,1.30553925,2482.9,2482.6,1.70878925]
[1730006160287,0.40325,2482.7,2482.6,0.4174]
[1730006160486,2.52478925,2482.7,2482.6,0.4174]
[1730006160729,2.12153925,2482.7,2482.6,0.4174]
[1730006160899,0.816,2482.7,2482.6,2.12619925]
[1730006163988,0.816,2482.7,2482.6,5.33399925]
[1730006165390,0.816,2482.7,2482.6,2.12619925]
[1730006165885,0.816,2482.7,2482.6,5.33399925]
[1730006166288,1.2861,2483.0,2482.6,5.33399925]
[1730006166289,1.6893,2483.0,2482.8,0.40322]
[1730006166489,0.816,2482.9,2482.8,0.40322]
[1730006166701,3.61098,2483.2,2483.0,0.40319]
[1730006166996,3.61098,2483.2,2482.8,1.70876925]
[1730006166997,0.816,2482.9,2482.8,1.70876925]
[1730006168194,0.83319,2483.1,2482.8,1.30553925]
[1730006168402,0.816,2483.0,2482.9,0.4032]
[1730006172197,1.21921,2483.0,2482.8,4.91655925]
[1730006172401,0.816,2483.0,2482.9,0.40321]
[1730006172702,1.2192,2483.0,2482.8,4.91655925]
[1730006173402,1.2192,2483.0,2482.8,1.30553925]
[1730006173403,0.816,2483.0,2482.8,1.30553925]
[1730006173594,0.816,2483.0,2482.9,0.40321]
[1730006173901,0.816,2483.0,2482.8,1.30553925]
[1730006174096,1.21921,2483.0,2482.8,1.70875925]
[1730006175003,0.439,2482.9,2482.8,1.70875925]
[1730006175198,0.40323,2482.8,2482.7,4.02184]
[1730006175399,0.84222,2482.9,2482.7,5.32737925]
[1730006176604,0.84221,2482.9,2482.8,3.2078]
[1730006177494,0.40323,2482.8,2482.7,1.71633925]
[1730006177726,0.40323,2482.8,2482.7,4.92413925]
[1730006178403,0.40323,2482.8,2482.7,1.71633925]
[1730006178605,0.40323,2482.8,2482.7,4.92413925]
[1730006178807,0.40323,2482.8,2482.7,1.71633925]
[1730006179008,0.84222,2482.9,2482.7,5.32736925]
[1730006181099,0.84222,2482.9,2482.8,3.2078]
[1730006182202,0.816,2483.0,2482.8,4.51333925]
[1730006182410,0.816,2483.0,2482.9,0.40321]
[1730006182706,1.2192,2483.0,2482.9,0.40321]
[1730006183006,2.52473925,2483.0,2482.8,4.91655925]
[1730006184106,2.52473925,2483.0,2482.9,0.40321]
[1730006184107,2.12153925,2483.0,2482.9,0.40321]
[1730006184306,2.52473925,2483.0,2482.9,0.85011]
[1730006185706,2.52473925,2483.0,2482.7,3.2078]
[1730006185707,6.14873925,2483.0,2482.7,3.2078]
[1730006185905,0.40323,2482.8,2482.7,3.2078]
[1730006186410,1.26133,2482.8,2482.7,3.2078]
[1730006186807,0.40329,2482.4,2482.3,23.61622]
[1730006187010,1.21929,2482.4,2482.3,23.17982]
[1730006187513,2.07739,2482.4,2482.3,23.17982]
[1730006189215,2.07739,2482.4,2482.3,24.48535925]
[1730006189716,2.07739,2482.4,2482.3,21.27755925]
[1730006190104,2.07739,2482.4,2482.3,24.48535925]
[1730006190314,1.6741,2482.4,2482.3,24.48535925]
[1730006190608,1.6741,2482.4,2482.3,24.88866925]
[1730006191802,1.6741,2482.4,2482.3,24.48535925]
[1730006192211,1.6741,2482.4,2482.3,21.27755925]
[1730006192711,1.6741,2482.4,2482.3,24.48535925]
[1730006192900,2.07739,2482.4,2482.3,24.48535925]
[1730006193103,1.6741,2482.4,2482.3,24.48535925]
[1730006193426,1.6741,2482.4,2482.3,24.88866925]
[1730006193811,1.254,2482.4,2482.3,24.88866925]
[1730006196009,1.254,2482.4,2482.3,21.68086925]
[1730006196214,1.254,2482.4,2482.3,24.88866925]
[1730006197712,1.254,2482.4,2482.3,21.68086925]
[1730006197912,1.254,2482.4,2482.3,24.88866925]
[1730006198113,1.254,2482.4,2482.3,21.68086925]
[1730006198710,1.254,2482.4,2482.3,24.48535925]
[1730006198910,1.65729,2482.4,2482.3,24.48535925]
[1730006199919,1.65729,2482.4,2482.3,21.27755925]
[1730006200212,2.96282925,2482.4,2482.3,24.48535925]
[1730006200412,2.55953925,2482.4,2482.3,24.48535925]
[1730006200913,1.254,2482.4,2482.3,24.88866925]
[1730006202617,1.254,2482.4,2482.3,21.68086925]
[1730006202921,1.254,2482.4,2482.3,24.88866925]
[1730006203713,1.254,2482.4,2482.3,21.68086925]
[1730006203911,1.254,2482.4,2482.3,24.88866925]
[1730006204911,1.254,2482.4,2482.3,21.68086925]
[1730006205312,1.254,2482.4,2482.3,24.88866925]
[1730006207221,1.254,2482.4,2482.3,21.68086925]
[1730006207521,1.254,2482.4,2482.3,24.88866925]
[1730006208218,1.254,2482.4,2482.3,21.68086925]
[1730006208620,2.55953925,2482.4,2482.3,24.88866925]
[1730006208916,1.254,2482.4,2482.3,24.88866925]
[1730006209119,2.55953925,2482.4,2482.3,24.88866925]
[1730006209622,2.55953925,2482.4,2482.3,21.68086925]
[1730006209822,2.55953925,2482.4,2482.3,24.88866925]
[1730006210524,2.55953925,2482.4,2482.3,21.68086925]
[1730006210825,2.55953925,2482.4,2482.3,24.88866925]
[1730006212823,2.55953925,2482.4,2482.3,24.48535925]
[1730006213020,2.98193925,2482.4,2482.3,24.48535925]
[1730006213221,2.98193925,2482.4,2482.3,23.58313]
[1730006213422,2.98193925,2482.4,2482.3,20.37533]
[1730006213620,2.98193925,2482.4,2482.3,23.58313]
[1730006214125,2.98193925,2482.4,2482.3,20.37533]
[1730006214927,3.38522925,2482.4,2482.3,23.17982]
[1730006215123,3.38522925,2482.4,2482.3,23.58313]
[1730006215426,2.98193925,2482.4,2482.3,23.58313]
[1730006215817,2.98193925,2482.4,2482.3,23.17982]
[1730006216057,2.98193925,2482.4,2482.3,23.58313]
[1730006217329,2.98193925,2482.4,2482.3,20.37533]
[1730006217628,2.98193925,2482.4,2482.3,23.58313]
[1730006218029,2.98193925,2482.4,2482.3,20.37533]
[1730006218224,2.98193925,2482.4,2482.3,23.58313]
[1730006221435,2.98193925,2482.4,2482.3,20.37533]
[1730006221928,2.98193925,2482.4,2482.3,23.58313]
[1730006222527,2.98193925,2482.4,2482.3,20.37533]
[1730006222728,2.98193925,2482.4,2482.3,23.58313]
[1730006223034,2.98193925,2482.4,2482.3,20.37533]
[1730006223428,2.98193925,2482.4,2482.3,23.58313]
[1730006224933,2.98193925,2482.4,2482.3,20.37533]
[1730006225235,2.98193925,2482.4,2482.3,23.58313]
[1730006225535,2.98193925,2482.4,2482.3,20.37533]
[1730006225734,2.98193925,2482.4,2482.3,23.58313]
[1730006226033,2.98193925,2482.4,2482.3,20.37533]
[1730006226427,2.98193925,2482.4,2482.3,23.58313]
[1730006227443,2.98193925,2482.4,2482.3,20.37533]
[1730006227630,2.98193925,2482.4,2482.3,23.58313]
[1730006230335,3.2078,2482.9,2482.3,24.48535925]
[1730006230643,3.2078,2482.9,2482.7,0.40324]
[1730006230644,1.2619,2482.8,2482.7,0.40324]
[1730006230838,2.56743925,2482.8,2482.7,0.40324]
[1730006233440,0.816,2482.8,2482.7,0.40324]
[1730006234237,0.816,2482.9,2482.7,1.30553925]
[1730006234486,2.60583925,2483.0,2482.9,0.40321]
[1730006234487,1.2442,2483.0,2482.9,0.40321]
[1730006234745,0.816,2483.0,2482.9,4.91654925]
[1730006235940,0.821,2483.2,2482.9,8.54053925]
[1730006236246,0.821,2483.2,2483.1,1.70871925]
[1730006237734,2.12653925,2483.2,2483.1,0.40318]
[1730006240137,2.12653925,2483.2,2483.1,3.61098]
[1730006242003,2.12653925,2483.2,2483.1,0.40318]
[1730006242143,2.12653925,2483.2,2483.1,3.61098]
[1730006244351,2.12653925,2483.2,2483.1,4.05518]
[1730006247146,2.12653925,2483.2,2483.1,0.84738]
[1730006247339,2.12653925,2483.2,2483.1,4.05518]
[1730006248351,2.12653925,2483.2,2483.1,3.652]
[1730006248546,7.40509925,2483.2,2483.1,3.2078]
[1730006248751,7.40509925,2483.2,2482.9,3.2078]
[1730006248948,1.30553925,2483.0,2482.9,3.61101]
[1730006251246,1.30553925,2483.0,2482.9,3.2078]
[1730006251551,1.30553925,2483.0,2482.9,3.61101]
[1730006251753,1.30553925,2483.0,2482.9,3.2078]
[1730006252350,5.33273925,2483.0,2482.7,0.4476]
[1730006252655,1.30553925,2482.8,2482.7,0.4476]
[1730006252860,1.30553925,2482.8,2482.7,3.2078]
[1730006253051,1.72103925,2482.8,2482.7,3.2078]
[1730006253652,1.72103925,2482.8,2482.7,3.61105]
[1730006254251,1.72103925,2482.8,2482.7,0.40325]
[1730006254956,1.72103925,2482.8,2482.7,3.61105]
[1730006255254,1.72103925,2482.8,2482.7,3.2078]
[1730006255757,2.12426925,2482.8,2482.7,3.2078]
[1730006255949,2.12426925,2482.8,2482.5,0.40327]
[1730006256149,1.30553925,2482.6,2482.5,0.40327]
[1730006256856,1.74483925,2482.6,2482.5,0.40327]
[1730006257665,1.74483925,2482.6,2482.5,1.70880925]
[1730006257666,0.4393,2482.6,2482.5,1.70880925]
[1730006262859,0.4393,2482.6,2482.5,4.91660925]